bitfinex-derivatives/quotes_BTCF0:USTF0_20250609
["timestamp","ask_amount","ask_price","bid_price","bid_amount"]
[1749464523017,0.62036357,107200.0,107190.0,1.23690431]
[1749464523516,0.98116357,107200.0,107190.0,1.60334738]
[1749464523917,1.35506357,107200.0,107190.0,1.42084738]
[1749464524813,1.33977783,107200.0,107190.0,1.42084738]
[1749464525213,1.4663433,107200.0,107190.0,1.23394738]
[1749464526016,1.31858141,107200.0,107190.0,1.23394738]
[1749464527021,1.13698141,107200.0,107190.0,1.43384738]
[1749464527213,1.13698141,107200.0,107190.0,1.63044738]
[1749464527625,0.62036357,107200.0,107190.0,1.75701285]
[1749464527923,0.48787014,107200.0,107190.0,1.75701285]
[1749464528114,0.47709033,107200.0,107190.0,1.75701285]
[1749464528823,0.93404,107200.0,107190.0,1.26400431]
[1749464529122,0.93404,107200.0,107190.0,1.71727871]
[1749464529423,0.93404,107200.0,107190.0,2.08742677]
[1749464529613,2.43404,107200.0,107190.0,2.08742677]
[1749464530215,2.48119391,107200.0,107190.0,2.08742677]
[1749464530816,2.48119391,107200.0,107190.0,1.63415237]
[1749464533421,2.85779391,107200.0,107190.0,1.26400431]
[1749464533622,2.98435938,107200.0,107190.0,1.06740431]
[1749464534026,2.96316289,107200.0,107190.0,1.02061359]
[1749464534323,2.94787696,107200.0,107190.0,1.47388799]
[1749464534516,1.44787696,107200.0,107190.0,1.47388799]
[1749464534716,1.72749966,107200.0,107190.0,1.20139225]
[1749464534917,1.61013094,107200.0,107190.0,1.20139225]
[1749464535121,1.80153094,107200.0,107190.0,1.30077871]
[1749464535517,1.61506824,107200.0,107190.0,1.30077871]
[1749464535717,1.61506824,107200.0,107190.0,1.18508003]
[1749464535917,1.89766824,107200.0,107190.0,1.18508003]
[1749464536114,1.89766824,107200.0,107190.0,1.16553003]
[1749464536311,1.89766824,107200.0,107190.0,0.94490083]
[1749464536312,1.80153094,107200.0,107190.0,0.94490083]
[1749464536518,1.89481895,107200.0,107190.0,1.36591385]
[1749464536712,1.80153094,107200.0,107190.0,1.37377006]
[1749464537015,1.89481895,107200.0,107190.0,1.37389059]
[1749464537218,1.89481895,107200.0,107190.0,1.42730689]
[1749464537422,1.89481895,107200.0,107190.0,0.99261946]
[1749464537624,1.89481895,107200.0,107190.0,0.74755796]
[1749464537824,1.89481895,107200.0,107190.0,0.70097426]
[1749464538025,1.87967573,107200.0,107190.0,0.6495331]
[1749464538325,1.87967573,107200.0,107190.0,0.58484941]
[1749464538624,1.87967573,107200.0,107190.0,0.69859644]
[1749464538823,1.87967573,107200.0,107190.0,0.61330274]
[1749464539029,1.87967573,107200.0,107190.0,0.48734453]
[1749464539327,1.87967573,107200.0,107190.0,0.57395793]
[1749464539624,1.87967573,107200.0,107190.0,0.49380043]
[1749464539822,1.87967573,107200.0,107190.0,0.49392096]
[1749464540023,1.87967573,107200.0,107190.0,0.4170741]
[1749464540224,1.87967573,107200.0,107190.0,0.63103157]
[1749464540430,1.87967573,107200.0,107190.0,0.61303897]
[1749464540615,2.2562412,107200.0,107190.0,0.21442406]
[1749464540820,2.2562412,107200.0,107190.0,0.15034476]
[1749464541129,2.2562412,107200.0,107190.0,0.43955873]
[1749464541326,2.2562412,107200.0,107190.0,0.41545873]
[1749464541529,2.2562412,107200.0,107190.0,0.23755873]
[1749464541823,2.2562412,107200.0,107190.0,0.20767357]
[1749464542023,2.2562412,107200.0,107190.0,0.38963082]
[1749464542224,0.2796575,107180.0,107170.0,0.14625857]
[1749464542419,1.97557347,107180.0,107170.0,0.49524277]
[1749464542622,2.10213894,107180.0,107170.0,0.44864752]
[1749464542926,2.58664294,107180.0,107170.0,0.42671009]
[1749464543125,2.58664294,107180.0,107170.0,0.52330534]
[1749464543330,2.58764294,107180.0,107170.0,0.37683144]
[1749464543529,2.58764294,107180.0,107170.0,0.28382194]
[1749464543716,2.58764294,107180.0,107170.0,0.23722669]
[1749464543921,2.58764294,107180.0,107170.0,0.28393678]
[1749464544119,2.58764294,107180.0,107170.0,0.35683144]
[1749464544329,2.58764294,107180.0,107170.0,0.31023619]
[1749464544529,2.58764294,107180.0,107170.0,0.26364094]
[1749464544727,2.49437894,107180.0,107170.0,0.31035103]
[1749464545329,2.49437894,107180.0,107170.0,0.38400702]
[1749464545721,2.49437894,107180.0,107170.0,0.48400702]
[1749464547123,2.49437894,107180.0,107170.0,0.43832702]
[1749464547723,1.92149894,107180.0,107170.0,0.43832702]
[1749464547925,1.9063531,107180.0,107170.0,0.43832702]
[1749464548127,2.4791531,107180.0,107170.0,0.43832702]
[1749464548724,2.4791531,107180.0,107170.0,0.42008902]
[1749464548926,1.9063531,107180.0,107170.0,0.56696133]
[1749464549221,2.4791131,107180.0,107170.0,0.56696133]
[1749464549524,2.4795131,107180.0,107170.0,0.56696133]
[1749464550232,2.35294763,107180.0,107170.0,0.56696133]
[1749464550435,1.9067531,107180.0,107170.0,0.56696133]
[1749464550731,2.4795531,107180.0,107170.0,0.56696133]
[1749464551327,1.78018763,107180.0,107170.0,0.56696133]
[1749464551524,2.4795131,107180.0,107170.0,0.75816133]
[1749464551724,2.4795131,107180.0,107170.0,0.95146133]
[1749464552726,2.4795131,107180.0,107170.0,0.75816133]
[1749464552930,2.4795131,107180.0,107170.0,0.56696133]
[1749464553432,2.4795131,107180.0,107170.0,0.54296133]
[1749464553630,2.4795131,107180.0,107170.0,0.72426133]
[1749464554827,2.4795131,107180.0,107170.0,0.72831793]
[1749464555127,1.9067531,107180.0,107170.0,0.72831793]
[1749464555336,0.723,107180.0,107170.0,1.05757232]
[1749464555632,0.90048,107180.0,107170.0,1.15649324]
[1749464555832,1.3253365,107180.0,107170.0,1.15649324]
[1749464556034,1.3253365,107180.0,107170.0,1.44040332]
[1749464556628,1.3249365,107180.0,107170.0,1.44040332]
[1749464556932,1.44861637,107180.0,107170.0,1.44040332]
[1749464557235,1.5114334,107180.0,107170.0,1.44040332]
[1749464557437,1.5114334,107180.0,107170.0,1.15649324]
[1749464557732,1.5118334,107180.0,107170.0,1.15649324]
[1749464557937,1.35772,107180.0,107170.0,1.15649324]
[1749464560535,2.48173671,107180.0,107170.0,1.62677547]
[1749464560732,2.46644855,107180.0,107170.0,1.62677547]
[1749464561126,1.89332855,107180.0,107170.0,1.62677547]
[1749464561327,2.46644855,107180.0,107170.0,1.62677547]
[1749464561532,0.40795391,107200.0,107170.0,2.74189908]
[1749464561735,0.45716,107200.0,107190.0,0.48758852]
[1749464561926,0.57268,107200.0,107190.0,0.97758852]
[1749464562122,0.57308,107200.0,107190.0,1.56141205]
[1749464562322,0.57308,107200.0,107190.0,1.52792887]
[1749464562528,0.57308,107200.0,107190.0,0.82384087]
[1749464562834,0.93388,107200.0,107190.0,1.10781687]
[1749464564227,1.02818,107200.0,107190.0,1.10981687]
[1749464564833,1.02818,107200.0,107190.0,1.02344087]
[1749464565036,1.02818,107200.0,107190.0,1.39264087]
[1749464565631,1.02818,107200.0,107190.0,1.67661687]
[1749464566337,1.02818,107200.0,107190.0,1.39264087]
[1749464566338,1.15496852,107200.0,107190.0,1.39264087]
[1749464566724,1.35166852,107200.0,107190.0,1.39264087]
[1749464567125,1.53813072,107200.0,107190.0,1.19504087]
[1749464567331,1.72413072,107200.0,107190.0,0.7227142]
[1749464567531,1.72413072,107200.0,107190.0,0.55212145]
[1749464567731,1.91053072,107200.0,107190.0,0.55212145]
[1749464568935,1.91053072,107200.0,107190.0,0.65212145]
[1749464569530,1.91053072,107200.0,107190.0,0.65112145]
[1749464569727,1.91053072,107200.0,107190.0,0.64512145]
[1749464570142,1.59728,107200.0,107190.0,0.64512145]
[1749464570343,1.72413072,107200.0,107190.0,0.64512145]
[1749464570532,0.96498852,107200.0,107190.0,0.83352145]
[1749464570733,1.15145072,107200.0,107190.0,0.83352145]
[1749464570936,1.72401072,107200.0,107190.0,0.94120957]
[1749464571138,1.72401072,107200.0,107190.0,0.94526617]
[1749464571638,0.85654655,107200.0,107190.0,0.94526617]
[1749464571939,1.01287803,107200.0,107190.0,1.14456617]
[1749464572239,1.01327803,107200.0,107190.0,1.14456617]
[1749464573436,1.02802,107200.0,107190.0,1.14456617]
[1749464574040,0.21022,107200.0,107190.0,1.14456617]
[1749464574245,1.02798,107200.0,107190.0,1.14456617]
[1749464574545,1.02758,107200.0,107190.0,1.14456617]
[1749464574842,1.02798,107200.0,107190.0,1.14456617]
[1749464578439,0.4555,107200.0,107190.0,1.14456617]
[1749464578637,0.91324294,107200.0,107190.0,1.14456617]
[1749464578837,0.91324294,107200.0,107190.0,1.42854217]
[1749464579145,0.11572,107200.0,107190.0,1.91613069]
[1749464579344,0.57264,107200.0,107190.0,1.91290703]
[1749464579541,0.57224,107200.0,107190.0,1.91290703]
[1749464579749,0.57264,107200.0,107190.0,1.91290703]
[1749464580133,0.0004,107200.0,107190.0,1.91290703]
[1749464580339,0.57202772,107200.0,107190.0,1.91290703]
[1749464580642,0.57202772,107200.0,107190.0,2.28318926]
[1749464580643,0.11554772,107200.0,107190.0,2.28318926]
[1749464580947,0.57202772,107200.0,107190.0,2.34250126]
[1749464581146,0.11514772,107200.0,107190.0,2.09250126]
[1749464581446,0.00014027,107210.0,107190.0,2.34250126]
[1749464581636,0.45684,107210.0,107200.0,1.04763584]
[1749464581946,0.57216,107210.0,107200.0,1.58763584]
[1749464582148,0.57256,107210.0,107200.0,1.91961289]
[1749464582346,0.57256,107210.0,107200.0,2.01290082]
[1749464582650,0.57256,107210.0,107200.0,2.38318305]
[1749464582947,0.57256,107210.0,107200.0,2.83807829]
[1749464582948,0.57216,107210.0,107200.0,2.83807829]
[1749464583148,0.45530315,107220.0,107200.0,3.08807829]
[1749464583344,0.45530315,107220.0,107210.0,0.86256486]
[1749464583648,1.02742315,107220.0,107210.0,1.68629577]
[1749464583844,1.02742315,107220.0,107210.0,1.93502387]
[1749464584048,1.02742315,107220.0,107210.0,2.0282944]
[1749464584347,0.0475409,107220.0,107210.0,1.83790195]
[1749464584560,0.1632609,107220.0,107210.0,2.08790195]
[1749464584848,0.1632609,107220.0,107210.0,1.71533709]
[1749464585046,0.1632609,107220.0,107210.0,1.83890195]
[1749464585349,0.1632609,107220.0,107210.0,1.71533709]
[1749464585537,0.1632609,107220.0,107210.0,1.99878488]
[1749464585746,0.1632609,107220.0,107210.0,1.54471288]
[1749464585944,0.1632609,107220.0,107210.0,1.73424414]
[1749464586150,0.8108809,107220.0,107210.0,1.73424414]
[1749464586349,0.8108809,107220.0,107210.0,1.45485295]
[1749464586556,0.78969002,107220.0,107210.0,1.45485295]
[1749464586849,1.74038077,107220.0,107210.0,0.63588945]
[1749464587038,1.74138077,107220.0,107210.0,0.63588945]
[1749464587243,1.74238077,107220.0,107210.0,0.63488945]
[1749464587655,1.74238077,107220.0,107210.0,0.52699868]
[1749464589652,1.83560077,107220.0,107210.0,0.52699868]
[1749464590243,1.83560077,107220.0,107210.0,0.50379868]
[1749464590549,1.83960077,107220.0,107210.0,0.4612375]
[1749464590748,1.83960077,107220.0,107210.0,0.4361375]
[1749464591050,1.71293752,107220.0,107210.0,0.57595046]
[1749464591246,1.83960077,107220.0,107210.0,0.57595046]
[1749464591646,1.8244612,107220.0,107210.0,0.57595046]
[1749464592050,1.5350212,107220.0,107210.0,0.57595046]
[1749464592249,2.1069811,107220.0,107210.0,0.57595046]
[1749464592551,2.1065811,107220.0,107210.0,0.57595046]
[1749464592748,2.1069811,107220.0,107210.0,0.57595046]
[1749464593847,1.22193045,107220.0,107210.0,0.57595046]
[1749464594052,2.1069412,107220.0,107210.0,0.57595046]
[1749464597144,0.94521045,107220.0,107210.0,0.57595046]
[1749464597359,1.51709045,107220.0,107210.0,0.6792661]
[1749464597652,1.70311795,107220.0,107210.0,0.6792661]
[1749464597851,1.8298537,107220.0,107210.0,0.6792661]
[1749464598052,1.5472537,107220.0,107210.0,0.6792661]
[1749464598362,1.5476537,107220.0,107210.0,0.6792661]
[1749464598660,1.42099045,107220.0,107210.0,0.6792661]
[1749464600654,0.84911045,107220.0,107210.0,0.6792661]
[1749464600956,1.42055045,107220.0,107210.0,1.0610661]
[1749464601158,1.42095045,107220.0,107210.0,1.0610661]
[1749464601356,1.42095045,107220.0,107210.0,0.8654661]
[1749464601855,1.41895045,107220.0,107210.0,0.8654661]
[1749464602058,1.23145045,107220.0,107210.0,0.8654661]
[1749464602444,0.56631045,107220.0,107210.0,0.8654661]
[1749464602651,0.0034,107220.0,107210.0,0.8654661]
[1749464602855,0.0034,107220.0,107210.0,0.49670498]
[1749464602856,1.15600325,107220.0,107210.0,0.49670498]
[1749464603059,1.53330325,107220.0,107210.0,0.7711212]
[1749464603252,1.53370325,107220.0,107210.0,0.86439173]
[1749464603452,1.44040325,107220.0,107210.0,0.86439173]
[1749464603650,1.40704,107220.0,107210.0,0.86439173]
[1749464603843,1.40704,107220.0,107210.0,0.86446645]
[1749464604245,0.3811,107220.0,107210.0,0.86446645]
[1749464604553,0.6219785,107220.0,107210.0,0.86446645]
[1749464604754,1.20314175,107220.0,107210.0,0.75721481]
[1749464604956,1.76766915,107220.0,107210.0,0.65315821]
[1749464605151,1.58124175,107220.0,107210.0,0.65315821]
[1749464605347,1.76766915,107220.0,107210.0,0.65315821]
[1749464605559,1.76666915,107220.0,107210.0,0.65315821]
[1749464605753,1.76666915,107220.0,107210.0,0.65721481]
[1749464606562,1.76466915,107220.0,107210.0,0.65721481]
[1749464607057,1.76466915,107220.0,107210.0,0.62981481]
[1749464607251,1.76459734,107220.0,107210.0,0.62981481]
[1749464607454,1.95108934,107220.0,107210.0,0.4508087]
[1749464607652,2.08956168,107220.0,107180.0,0.02271247]
[1749464607847,1.12497424,107190.0,107170.0,0.52846354]
[1749464608157,1.55085171,107180.0,107170.0,1.18545388]
[1749464608351,1.55085171,107180.0,107170.0,1.27872441]
[1749464608552,1.73734871,107180.0,107170.0,1.27881009]
[1749464608752,1.73734871,107180.0,107170.0,1.08178084]
[1749464608951,1.73734871,107180.0,107170.0,0.6268856]
[1749464611258,1.74057937,107180.0,107170.0,0.7268856]
[1749464612155,1.74057937,107180.0,107170.0,0.6268856]
[1749464612657,1.7254347,107180.0,107170.0,0.6268856]
[1749464613757,1.7254347,107180.0,107170.0,0.7268856]
[1749464613961,1.7254347,107180.0,107170.0,0.6268856]
[1749464614159,1.7254347,107180.0,107170.0,0.7268856]
[1749464614363,1.0268526,107180.0,107170.0,0.7268856]
[1749464614559,1.0268526,107180.0,107170.0,0.82784875]
[1749464614560,0.8403556,107180.0,107170.0,0.82784875]
[1749464614759,1.4119156,107180.0,107170.0,1.50641359]
[1749464615556,1.4123156,107180.0,107170.0,1.50641359]
[1749464615747,1.4123156,107180.0,107170.0,1.69431359]
[1749464616858,1.4123156,107180.0,107170.0,1.40990535]
[1749464617254,1.5988126,107180.0,107170.0,1.40990535]
[1749464617451,1.7256347,107180.0,107170.0,1.40990535]
[1749464617655,1.5391377,107180.0,107170.0,1.40990535]
[1749464617850,1.7256347,107180.0,107170.0,0.6309422]
[1749464618056,1.7255947,107180.0,107170.0,0.6309422]
[1749464618560,1.7255947,107180.0,107170.0,0.5573739]
[1749464618764,1.8188147,107180.0,107170.0,0.41741281]
[1749464619060,1.8188147,107180.0,107170.0,0.41335621]
[1749464619858,1.8188147,107180.0,107170.0,0.41741281]
[1749464620960,2.0028147,107180.0,107170.0,0.41741281]
[1749464621169,0.2797345,107170.0,107160.0,0.00014027]
[1749464621364,0.2797345,107170.0,107160.0,0.19014027]
[1749464621365,1.0446566,107170.0,107160.0,0.19014027]
[1749464621663,1.0446566,107170.0,107160.0,0.28344561]
[1749464622058,1.0446566,107170.0,107160.0,0.28352371]
[1749464622257,1.0496566,107170.0,107160.0,0.28352371]
[1749464623458,1.1429686,107170.0,107160.0,0.28352371]
[1749464623652,1.0496566,107170.0,107160.0,0.28352371]
[1749464623863,1.0536566,107170.0,107160.0,0.28352371]
[1749464624165,1.1469686,107170.0,107160.0,0.28352371]
[1749464625164,1.3036686,107170.0,107160.0,0.19022371]
[1749464625365,1.3036686,107170.0,107160.0,0.44338344]
[1749464625964,1.4886686,107170.0,107160.0,0.44338344]
[1749464626163,1.4886686,107170.0,107160.0,0.3500781]
[1749464626369,0.1865666,107140.0,107130.0,0.32592489]
[1749464626563,1.59139822,107140.0,107130.0,0.46592489]
[1749464626861,1.59139822,107140.0,107130.0,0.69858253]
[1749464626862,1.95759822,107140.0,107130.0,0.69858253]
[1749464627261,1.95759822,107140.0,107130.0,0.69868983]
[1749464627463,2.14759822,107140.0,107130.0,0.69868983]
[1749464627769,2.14759822,107140.0,107130.0,0.59868983]
[1749464629164,2.14759822,107140.0,107130.0,0.52276494]
[1749464629565,2.15059822,107140.0,107130.0,0.52276494]
[1749464629759,2.15359822,107140.0,107130.0,0.52276494]
[1749464629971,2.15359822,107140.0,107130.0,0.52682154]
[1749464630465,2.15359822,107140.0,107130.0,0.62682154]
[1749464630766,2.15459822,107140.0,107130.0,0.6029627]
[1749464631471,1.58403822,107140.0,107130.0,0.6029627]
[1749464631663,1.58403822,107140.0,107130.0,0.8907627]
[1749464631664,1.47257612,107140.0,107130.0,0.8907627]
[1749464631862,1.47257612,107140.0,107130.0,1.2666627]
[1749464631863,0.75097612,107140.0,107130.0,1.2666627]
[1749464632069,0.94076,107140.0,107130.0,1.2666627]
[1749464632265,0.57996,107140.0,107130.0,1.37274386]
[1749464632561,1.1269267,107140.0,107130.0,1.37274386]
[1749464632770,1.1233267,107140.0,107130.0,1.37274386]
[1749464632960,1.1223267,107140.0,107130.0,1.37274386]
[1749464633161,1.1253267,107140.0,107130.0,1.37274386]
[1749464633365,1.10411736,107140.0,107130.0,1.37274386]
[1749464633766,1.10211736,107140.0,107130.0,1.37274386]
[1749464634169,0.91555066,107140.0,107130.0,1.37274386]
[1749464634970,0.91255066,107140.0,107130.0,1.37274386]
[1749464635173,1.10011736,107140.0,107130.0,1.37274386]
[1749464635666,0.45715066,107140.0,107130.0,1.37274386]
[1749464635870,0.55271066,107140.0,107130.0,1.37274386]
[1749464636058,0.91351066,107140.0,107130.0,1.37274386]
[1749464636262,0.54152377,107140.0,107130.0,1.37274386]
[1749464636463,1.07374164,107140.0,107130.0,1.37274386]
[1749464637064,0.3632,107140.0,107130.0,1.37274386]
[1749464637265,0.93472,107140.0,107130.0,1.37274386]
[1749464637762,0.3632,107140.0,107130.0,1.37274386]
[1749464637963,0.93472,107140.0,107130.0,1.37274386]
[1749464638163,0.93472,107140.0,107130.0,1.49956596]
[1749464638364,0.93472,107140.0,107130.0,1.37274386]
[1749464638562,0.93432,107140.0,107130.0,1.37274386]
[1749464638763,0.93472,107140.0,107130.0,1.37274386]
[1749464638958,0.0024,107140.0,107130.0,1.37274386]
[1749464639158,0.5402,107140.0,107130.0,2.20370996]
[1749464639364,0.42528,107140.0,107130.0,2.30370996]
[1749464639672,2.49648,107140.0,107130.0,2.30370996]
[1749464639967,2.49608,107140.0,107130.0,2.30370996]
[1749464640271,2.49648,107140.0,107130.0,2.30370996]
[1749464640459,2.0402,107140.0,107130.0,2.30370996]
[1749464640658,0.00014027,107150.0,107130.0,2.30370996]
[1749464640968,0.5712,107140.0,107130.0,1.26984386]
[1749464641170,0.5712,107140.0,107130.0,1.63064386]
[1749464641371,0.5712,107140.0,107130.0,1.97398786]
[1749464641972,0.5712,107140.0,107130.0,2.10080996]
[1749464642874,0.5712,107140.0,107130.0,1.97498786]
[1749464643177,0.5712,107140.0,107130.0,1.72398786]
[1749464643567,0.5712,107140.0,107130.0,1.72598786]
[1749464643766,0.5712,107140.0,107130.0,1.72698786]
[1749464643966,0.5712,107140.0,107130.0,1.63364386]
[1749464644877,0.5332,107140.0,107130.0,1.63364386]
[1749464645877,0.5332,107140.0,107130.0,1.63164386]
[1749464647565,0.57104,107140.0,107130.0,1.53164386]
[1749464647763,0.36134027,107150.0,107140.0,0.2]
[1749464647967,0.00054027,107150.0,107140.0,0.49]
[1749464648168,0.57154027,107150.0,107140.0,0.93653491]
[1749464648473,0.57154027,107150.0,107140.0,1.02987508]
[1749464648676,0.00054027,107150.0,107140.0,1.02987508]
[1749464648871,0.57154027,107150.0,107140.0,1.02987508]
[1749464649071,0.57354027,107150.0,107140.0,1.02987508]
[1749464649678,0.57350027,107150.0,107140.0,1.39067508]
[1749464649872,0.00254027,107150.0,107140.0,1.02987508]
[1749464650073,2.07310027,107150.0,107140.0,1.51749718]
[1749464650281,2.07250027,107150.0,107140.0,1.51749718]
[1749464650580,2.07110027,107150.0,107140.0,1.03087508]
[1749464650766,1.50054027,107150.0,107140.0,1.39167508]
[1749464650966,0.57136,107150.0,107140.0,1.47698848]
[1749464651381,0.57136,107150.0,107140.0,1.60381058]
[1749464651873,2.07136,107150.0,107140.0,1.60381058]
[1749464652069,2.07096,107150.0,107140.0,1.60381058]
[1749464652270,2.07136,107150.0,107140.0,1.60381058]
[1749464653083,2.07136,107150.0,107140.0,1.31940234]
[1749464653985,1.5004,107150.0,107140.0,1.60381058]
[1749464654279,2.07128,107150.0,107140.0,1.60381058]
[1749464654689,1.61532,107150.0,107140.0,1.31940234]
[1749464654877,0.11492,107150.0,107140.0,1.66280509]
[1749464655084,0.57084,107150.0,107140.0,1.66280509]
[1749464655283,0.57124,107150.0,107140.0,1.94405106]
[1749464655486,0.11532,107150.0,107140.0,1.94405106]
[1749464655682,0.57124,107150.0,107140.0,1.94405106]
[1749464655983,0.57124,107150.0,107140.0,2.12995106]
[1749464656183,0.57124,107150.0,107140.0,1.87995106]
[1749464656572,0.0004,107150.0,107140.0,1.87995106]
[1749464656779,0.57124,107150.0,107140.0,1.87995106]
[1749464657386,0.57124,107150.0,107140.0,1.30216323]
[1749464657687,0.7577893,107150.0,107140.0,1.30416323]
[1749464657878,0.75414,107150.0,107140.0,1.30416323]
[1749464658075,1.11494,107150.0,107140.0,1.01975499]
[1749464658276,1.11494,107150.0,107140.0,0.83385499]
[1749464658277,1.3014893,107150.0,107140.0,0.83385499]
[1749464658482,1.4912893,107150.0,107140.0,0.73385499]
[1749464658679,1.4912893,107150.0,107140.0,0.73085499]
[1749464658979,1.61812723,107150.0,107140.0,1.0332967]
[1749464659175,1.61812723,107150.0,107140.0,0.8332967]
[1749464659371,1.61812723,107150.0,107140.0,0.63385499]
[1749464659577,1.61912723,107150.0,107140.0,0.63085499]
[1749464660184,1.61812723,107150.0,107140.0,0.63085499]
[1749464660393,1.62112723,107150.0,107140.0,0.63491159]
[1749464660578,1.62112723,107150.0,107140.0,0.47961846]
[1749464660886,1.62112723,107150.0,107140.0,0.46761846]
[1749464661191,1.62212723,107150.0,107140.0,0.46761846]
[1749464661393,1.62212723,107150.0,107140.0,0.66706017]
[1749464661584,1.62212723,107150.0,107140.0,0.62363017]
[1749464661785,1.62312723,107150.0,107140.0,0.42418846]
[1749464662378,1.0403693,107150.0,107140.0,0.42418846]
[1749464662694,0.9254495,107150.0,107140.0,0.62406287]
[1749464662886,1.62260743,107150.0,107140.0,0.82350458]
[1749464663095,1.62260743,107150.0,107140.0,0.72350458]
[1749464663283,1.62300743,107150.0,107140.0,0.72350458]
[1749464664186,0.47787243,107150.0,107140.0,0.92350458]
[1749464664495,0.93323243,107150.0,107140.0,0.72406287]
[1749464664693,1.29443243,107150.0,107140.0,0.72406287]
[1749464665692,1.29143243,107150.0,107140.0,0.72406287]
[1749464665889,1.29043243,107150.0,107140.0,0.72406287]
[1749464666394,1.29143243,107150.0,107140.0,0.72406287]
[1749464667087,1.41827036,107150.0,107140.0,0.72406287]
[1749464667291,1.41827036,107150.0,107140.0,0.62406287]
[1749464667883,0.72075243,107150.0,107140.0,0.62406287]
[1749464668083,1.41823036,107150.0,107140.0,0.72406287]
[1749464668493,1.41783036,107150.0,107140.0,0.72406287]
[1749464668693,1.41823036,107150.0,107140.0,0.72406287]
[1749464669188,1.60477966,107150.0,107140.0,0.52418846]
[1749464669583,1.60477966,107150.0,107140.0,0.42418846]
[1749464669788,1.60477966,107150.0,107140.0,0.52418846]
[1749464669989,1.60477966,107150.0,107140.0,0.42418846]
[1749464670788,1.60477966,107150.0,107140.0,0.7085967]
[1749464671995,1.41823036,107150.0,107140.0,0.42418846]
[1749464672196,1.60477966,107150.0,107140.0,0.42418846]
[1749464672395,1.60477966,107150.0,107140.0,0.70977102]
[1749464673092,1.60477966,107150.0,107140.0,0.42418846]
[1749464675787,1.73161759,107150.0,107140.0,0.42418846]
[1749464675990,0.1865672,107140.0,107130.0,0.36172372]
[1749464676288,1.24130513,107140.0,107130.0,0.39053067]
[1749464676485,1.24130513,107140.0,107130.0,0.58386213]
[1749464677003,1.24130513,107140.0,107130.0,0.58393224]
[1749464677206,1.22615442,107140.0,107130.0,0.58393224]
[1749464677799,1.22615442,107140.0,107130.0,0.48393224]
[1749464677995,1.22615442,107140.0,107130.0,0.65784854]
[1749464678300,1.62493793,107140.0,107130.0,0.65784854]
[1749464678500,1.05473793,107140.0,107130.0,0.65784854]
[1749464678692,1.62533793,107140.0,107130.0,0.65784854]
[1749464678889,1.62593793,107140.0,107130.0,0.65784854]
[1749464679193,1.62733793,107140.0,107130.0,0.65784854]
[1749464679593,1.04494,107140.0,107130.0,0.65784854]
[1749464679797,0.7364,107140.0,107130.0,0.75902528]
[1749464680106,1.3066,107140.0,107130.0,1.14032528]
[1749464680394,1.30656,107140.0,107130.0,1.14032528]
[1749464680995,1.30616,107140.0,107130.0,1.24032528]
[1749464681192,1.30656,107140.0,107130.0,1.24032528]
[1749464682793,0.5555,107140.0,107130.0,1.43152528]
[1749464682998,0.1943,107140.0,107130.0,1.43152528]
[1749464683198,0.1947,107140.0,107130.0,1.71700321]
[1749464683399,0.76482,107140.0,107130.0,1.71700321]
[1749464684004,0.1947,107140.0,107130.0,1.71700321]
[1749464684204,0.1927,107140.0,107130.0,1.71700321]
[1749464684405,0.76242,107140.0,107130.0,1.71700321]
[1749464684598,0.76282,107140.0,107130.0,1.43152528]
[1749464684999,0.1927,107140.0,107130.0,1.55836321]
[1749464685202,0.1927,107140.0,107130.0,1.91916321]
[1749464685406,0.1923,107140.0,107130.0,1.92016321]
[1749464685706,0.57048,107140.0,107130.0,2.01350721]
[1749464685910,0.0004,107140.0,107130.0,2.01350721]
[1749464686106,0.11504,107140.0,107130.0,2.54898514]
[1749464686602,0.11504,107140.0,107130.0,2.07780321]
[1749464686805,0.11504,107140.0,107130.0,1.79232528]
[1749464687009,0.11504,107140.0,107130.0,1.79432528]
[1749464687210,0.09989309,107140.0,107130.0,1.79432528]
[1749464687404,0.09989309,107140.0,107130.0,1.79632528]
[1749464687706,0.11464,107140.0,107130.0,2.63503847]
[1749464687906,0.10385583,107140.0,107130.0,2.63303847]
[1749464688107,0.42302027,107160.0,107140.0,0.001]
[1749464688311,0.87838027,107160.0,107150.0,0.87316394]
[1749464688503,0.42302027,107160.0,107150.0,1.32316394]
[1749464688705,0.99342027,107160.0,107150.0,2.21638263]
[1749464688906,0.99342027,107160.0,107150.0,2.118954]
[1749464689114,0.53806027,107160.0,107150.0,2.118954]
[1749464689414,0.99338027,107160.0,107150.0,2.40423533]
[1749464689604,2.49338027,107160.0,107150.0,2.40423533]
[1749464689913,2.49338027,107160.0,107150.0,2.03570407]
[1749464690210,2.49138027,107160.0,107150.0,2.11122274]
[1749464690802,2.49138027,107160.0,107150.0,2.481754]
[1749464691013,2.49138027,107160.0,107150.0,2.4858106]
[1749464691213,2.49138027,107160.0,107150.0,2.4878106]
[1749464692220,0.42142027,107160.0,107150.0,2.4878106]
[1749464692411,0.42290848,107190.0,107150.0,2.95787115]
[1749464692712,0.42290848,107190.0,107160.0,0.76357243]
[1749464692713,0.1146,107170.0,107160.0,0.76357243]
[1749464692903,0.1146,107170.0,107160.0,1.93621568]
[1749464693205,0.115,107170.0,107160.0,2.17917669]
[1749464693405,0.115,107170.0,107160.0,2.27249073]
[1749464693810,0.115,107170.0,107160.0,2.39932866]
[1749464694516,0.1156,107170.0,107160.0,2.39932866]
[1749464694713,0.116,107170.0,107160.0,2.68362216]
[1749464694905,0.116,107170.0,107160.0,2.68662216]
[1749464695110,0.1156,107170.0,107160.0,2.3180909]
[1749464695309,0.116,107170.0,107160.0,2.3180909]
[1749464696015,0.115,107170.0,107160.0,2.3200909]
[1749464696817,0.115,107170.0,107160.0,2.19325297]
[1749464697017,0.115,107170.0,107160.0,2.3200909]
[1749464697220,0.09985926,107170.0,107160.0,2.3200909]
[1749464698316,0.09985926,107170.0,107160.0,2.3190909]
[1749464698517,0.09985926,107170.0,107160.0,2.3200909]
[1749464698913,0.09985926,107170.0,107160.0,2.0357974]
[1749464699216,0.09985926,107170.0,107160.0,1.94248541]
[1749464699611,0.09985926,107170.0,107160.0,1.94048541]
[1749464699803,0.09985926,107170.0,107160.0,1.94148541]
[1749464700008,0.39654027,107180.0,107160.0,1.81364748]
[1749464700217,1.1165548,107170.0,107160.0,0.88934748]
[1749464700414,1.62619273,107170.0,107160.0,0.88934748]
[1749464700615,1.43967793,107170.0,107160.0,0.88934748]
[1749464700805,0.95204,107170.0,107160.0,0.88934748]
[1749464701011,1.31284,107170.0,107160.0,0.88734748]
[1749464701211,1.4993548,107170.0,107160.0,0.88934748]
[1749464701917,1.31284,107170.0,107160.0,0.88934748]
[1749464702417,1.31484,107170.0,107160.0,0.88734748]
[1749464702814,1.5013548,107170.0,107160.0,0.88734748]
[1749464703013,1.5013548,107170.0,107160.0,0.88634748]
[1749464703312,1.5033548,107170.0,107160.0,0.88634748]
[1749464703712,0.00014027,107180.0,107170.0,0.101]